Workbook

Sheet Инструкция (hidden)
A1: 1. Визуализатор предназначен для графической агрегации информационного массива данных по малым и средним хозяйствующим субъектам муниципального образования (далее МСП)
A2: 2. Визуализатор ивключает в себя три вкладки (листа):
A3: - вкладка "МСП" предназначена для ввода входящих данных по МСП, пользователь заполняет только те графы, текст в которых окрашен в красный цвет, графы имеющие цвет текста черный - заполняются автоматически;
A4: - вкладка "Свод_отрасли" формирует визуальный агрегатор информации в виде диаграммы по МСП в разрезе отраслей, отрасли, в графе "вид отрасли" пользователь выбирает из списка (формируется автоматически). Формирование перечня отраслей осуществляется в соответствии с фактически существующими в МО отраслями экономики;
A5: - вкладка "Свод" формирует визуальный агрегатор информации в виде диаграммы по МСП

Sheet Свод_отрасли
E1: Выберите наименование муниципального образования
A2: Выберите вид отрасли | B2: Среднесписочная численность работников в МСП по отрасли, человек | C2: Выработка на 1 работника в среднем по отрасли, тыс. рублей | D2: Налоговые поступления на 1 работника в среднем по отрасли, тыс. рублей | E2: Налоговая нагрузка в среднем по отрасли, процентов
A3: Сельское хозяйство | B3: =IF(A3="","",SUMIF(МСП!$H$3:$H$50001,A3,МСП!$D$3:$D$50001)) -> 126 | C3: =IF(A3="","",SUMIF(МСП!$H$3:$H$50001,A3,МСП!$F$3:$F$50001)/COUNTIF(МСП!$H$3:$H$50001,A3)) -> 39.62488129 | D3: =IF(A3="","",SUMIF(МСП!$H$3:$H$50001,A3,МСП!$G$3:$G$50001)/COUNTIF(МСП!$H$3:$H$50001,A3)) -> 2.872269706 | E3: =IF(A3="","",SUMIF(МСП!$H$3:$H$50001,A3,МСП!$E$3:$E$50001)/COUNTIF(МСП!H3:H50001,A3)) -> 6.833333333
A4: Добыча полезных ископаемых | B4: =IF(A4="","",SUMIF(МСП!$H$3:$H$50001,A4,МСП!$D$3:$D$50001)) -> 22 | C4: =IF(A4="","",SUMIF(МСП!$H$3:$H$50001,A4,МСП!$F$3:$F$50001)/COUNTIF(МСП!$H$3:$H$50001,A4)) -> 47.72727273 | D4: =IF(A4="","",SUMIF(МСП!$H$3:$H$50001,A4,МСП!$G$3:$G$50001)/COUNTIF(МСП!$H$3:$H$50001,A4)) -> 4.454545455 | E4: =IF(A4="","",SUMIF(МСП!$H$3:$H$50001,A4,МСП!$E$3:$E$50001)/COUNTIF(МСП!H4:H50002,A4)) -> 9.333333333
A5: Обрабатывающие производства | B5: =IF(A5="","",SUMIF(МСП!$H$3:$H$50001,A5,МСП!$D$3:$D$50001)) -> 24 | C5: =IF(A5="","",SUMIF(МСП!$H$3:$H$50001,A5,МСП!$F$3:$F$50001)/COUNTIF(МСП!$H$3:$H$50001,A5)) -> 45.83333333 | D5: =IF(A5="","",SUMIF(МСП!$H$3:$H$50001,A5,МСП!$G$3:$G$50001)/COUNTIF(МСП!$H$3:$H$50001,A5)) -> 2.291666667 | E5: =IF(A5="","",SUMIF(МСП!$H$3:$H$50001,A5,МСП!$E$3:$E$50001)/COUNTIF(МСП!H5:H50003,A5)) -> 5
A6: Обеспечение электрической энергией, газом и паром; забор и очистка воды | B6: =IF(A6="","",SUMIF(МСП!$H$3:$H$50001,A6,МСП!$D$3:$D$50001)) -> 26 | C6: =IF(A6="","",SUMIF(МСП!$H$3:$H$50001,A6,МСП!$F$3:$F$50001)/COUNTIF(МСП!$H$3:$H$50001,A6)) -> 44.23076923 | D6: =IF(A6="","",SUMIF(МСП!$H$3:$H$50001,A6,МСП!$G$3:$G$50001)/COUNTIF(МСП!$H$3:$H$50001,A6)) -> 2.211538462 | E6: =IF(A6="","",SUMIF(МСП!$H$3:$H$50001,A6,МСП!$E$3:$E$50001)/COUNTIF(МСП!H6:H50004,A6)) -> 5
A7: Строительство | B7: =IF(A7="","",SUMIF(МСП!$H$3:$H$50001,A7,МСП!$D$3:$D$50001)) -> 102 | C7: =IF(A7="","",SUMIF(МСП!$H$3:$H$50001,A7,МСП!$F$3:$F$50001)/COUNTIF(МСП!$H$3:$H$50001,A7)) -> 34.99216301 | D7: =IF(A7="","",SUMIF(МСП!$H$3:$H$50001,A7,МСП!$G$3:$G$50001)/COUNTIF(МСП!$H$3:$H$50001,A7)) -> 2.090517241 | E7: =IF(A7="","",SUMIF(МСП!$H$3:$H$50001,A7,МСП!$E$3:$E$50001)/COUNTIF(МСП!H7:H50005,A7)) -> 5.9375
A8: Оптовая и розничная торговля | B8: =IF(A8="","",SUMIF(МСП!$H$3:$H$50001,A8,МСП!$D$3:$D$50001)) -> 146 | C8: =IF(A8="","",SUMIF(МСП!$H$3:$H$50001,A8,МСП!$F$3:$F$50001)/COUNTIF(МСП!$H$3:$H$50001,A8)) -> 39.76934524 | D8: =IF(A8="","",SUMIF(МСП!$H$3:$H$50001,A8,МСП!$G$3:$G$50001)/COUNTIF(МСП!$H$3:$H$50001,A8)) -> 2.37983631 | E8: =IF(A8="","",SUMIF(МСП!$H$3:$H$50001,A8,МСП!$E$3:$E$50001)/COUNTIF(МСП!H8:H50006,A8)) -> 8.098245614
A9: Гостиницы и рестораны | B9: =IF(A9="","",SUMIF(МСП!$H$3:$H$50001,A9,МСП!$D$3:$D$50001)) -> 34 | C9: =IF(A9="","",SUMIF(МСП!$H$3:$H$50001,A9,МСП!$F$3:$F$50001)/COUNTIF(МСП!$H$3:$H$50001,A9)) -> 39.70588235 | D9: =IF(A9="","",SUMIF(МСП!$H$3:$H$50001,A9,МСП!$G$3:$G$50001)/COUNTIF(МСП!$H$3:$H$50001,A9)) -> 1.985294118 | E9: =IF(A9="","",SUMIF(МСП!$H$3:$H$50001,A9,МСП!$E$3:$E$50001)/COUNTIF(МСП!H9:H50007,A9)) -> 5
A10: Транспорт и связь | B10: =IF(A10="","",SUMIF(МСП!$H$3:$H$50001,A10,МСП!$D$3:$D$50001)) -> 36 | C10: =IF(A10="","",SUMIF(МСП!$H$3:$H$50001,A10,МСП!$F$3:$F$50001)/COUNTIF(МСП!$H$3:$H$50001,A10)) -> 38.88888889 | D10: =IF(A10="","",SUMIF(МСП!$H$3:$H$50001,A10,МСП!$G$3:$G$50001)/COUNTIF(МСП!$H$3:$H$50001,A10)) -> 1.944444444 | E10: =IF(A10="","",SUMIF(МСП!$H$3:$H$50001,A10,МСП!$E$3:$E$50001)/COUNTIF(МСП!H10:H50008,A10)) -> 5
A11: Финансовая деятельность | B11: =IF(A11="","",SUMIF(МСП!$H$3:$H$50001,A11,МСП!$D$3:$D$50001)) -> 38 | C11: =IF(A11="","",SUMIF(МСП!$H$3:$H$50001,A11,МСП!$F$3:$F$50001)/COUNTIF(МСП!$H$3:$H$50001,A11)) -> 38.15789474 | D11: =IF(A11="","",SUMIF(МСП!$H$3:$H$50001,A11,МСП!$G$3:$G$50001)/COUNTIF(МСП!$H$3:$H$50001,A11)) -> 1.907894737 | E11: =IF(A11="","",SUMIF(МСП!$H$3:$H$50001,A11,МСП!$E$3:$E$50001)/COUNTIF(МСП!H11:H50009,A11)) -> 5
A12: Операции с недвижимым имуществом, аренда и предоставление услуг | B12: =IF(A12="","",SUMIF(МСП!$H$3:$H$50001,A12,МСП!$D$3:$D$50001)) -> 40 | C12: =IF(A12="","",SUMIF(МСП!$H$3:$H$50001,A12,МСП!$F$3:$F$50001)/COUNTIF(МСП!$H$3:$H$50001,A12)) -> 37.5 | D12: =IF(A12="","",SUMIF(МСП!$H$3:$H$50001,A12,МСП!$G$3:$G$50001)/COUNTIF(МСП!$H$3:$H$50001,A12)) -> 1.875 | E12: =IF(A12="","",SUMIF(МСП!$H$3:$H$50001,A12,МСП!$E$3:$E$50001)/COUNTIF(МСП!H12:H50010,A12)) -> 5
A13: Образование | B13: =IF(A13="","",SUMIF(МСП!$H$3:$H$50001,A13,МСП!$D$3:$D$50001)) -> 42 | C13: =IF(A13="","",SUMIF(МСП!$H$3:$H$50001,A13,МСП!$F$3:$F$50001)/COUNTIF(МСП!$H$3:$H$50001,A13)) -> 36.9047619 | D13: =IF(A13="","",SUMIF(МСП!$H$3:$H$50001,A13,МСП!$G$3:$G$50001)/COUNTIF(МСП!$H$3:$H$50001,A13)) -> 1.845238095 | E13: =IF(A13="","",SUMIF(МСП!$H$3:$H$50001,A13,МСП!$E$3:$E$50001)/COUNTIF(МСП!H13:H50011,A13)) -> 5
A14: Здравоохранение и предоставление социальных услуг | B14: =IF(A14="","",SUMIF(МСП!$H$3:$H$50001,A14,МСП!$D$3:$D$50001)) -> 46 | C14: =IF(A14="","",SUMIF(МСП!$H$3:$H$50001,A14,МСП!$F$3:$F$50001)/COUNTIF(МСП!$H$3:$H$50001,A14)) -> 35.86956522 | D14: =IF(A14="","",SUMIF(МСП!$H$3:$H$50001,A14,МСП!$G$3:$G$50001)/COUNTIF(МСП!$H$3:$H$50001,A14)) -> 1.793478261 | E14: =IF(A14="","",SUMIF(МСП!$H$3:$H$50001,A14,МСП!$E$3:$E$50001)/COUNTIF(МСП!H14:H50012,A14)) -> 5
A15: Предоставление прочих коммунальных, социальных и персональных услуг | B15: =IF(A15="","",SUMIF(МСП!$H$3:$H$50001,A15,МСП!$D$3:$D$50001)) -> 48 | C15: =IF(A15="","",SUMIF(МСП!$H$3:$H$50001,A15,МСП!$F$3:$F$50001)/COUNTIF(МСП!$H$3:$H$50001,A15)) -> 35.41666667 | D15: =IF(A15="","",SUMIF(МСП!$H$3:$H$50001,A15,МСП!$G$3:$G$50001)/COUNTIF(МСП!$H$3:$H$50001,A15)) -> 1.770833333 | E15: =IF(A15="","",SUMIF(МСП!$H$3:$H$50001,A15,МСП!$E$3:$E$50001)/COUNTIF(МСП!H15:H50013,A15)) -> 5
A16: Прочие отрасли | B16: =IF(A16="","",SUMIF(МСП!$H$3:$H$50001,A16,МСП!$D$3:$D$50001)) -> 50 | C16: =IF(A16="","",SUMIF(МСП!$H$3:$H$50001,A16,МСП!$F$3:$F$50001)/COUNTIF(МСП!$H$3:$H$50001,A16)) -> 35 | D16: =IF(A16="","",SUMIF(МСП!$H$3:$H$50001,A16,МСП!$G$3:$G$50001)/COUNTIF(МСП!$H$3:$H$50001,A16)) -> 1.75 | E16: =IF(A16="","",SUMIF(МСП!$H$3:$H$50001,A16,МСП!$E$3:$E$50001)/COUNTIF(МСП!H16:H50014,A16)) -> 5

Sheet Свод
D1: Выберите наименование муниципального образования
A2: Выберите наименование МСП | B2: Среднесписочная численность работников в МСП, человек | C2: Выработка на 1 работника, тыс. рублей | D2: Налоговые поступления на 1 работника, тыс. рублей | E2: Налоговая нагрузка, процентов
A3: ООО уч 1 | B3: =VLOOKUP(A3,МСП!$A$3:$H$50001,4,FALSE) -> 20 | C3: =VLOOKUP(A3,МСП!$A$3:$I$50001,6,FALSE) -> 50 | D3: =VLOOKUP(A3,МСП!$A$3:$G$50001,7,FALSE) -> 5 | E3: =VLOOKUP(A3,МСП!$A$3:$I$50001,5,FALSE) -> 10
A4: ООО уч 2 | B4: =VLOOKUP(A4,МСП!$A$3:$H$50001,4,FALSE) -> 22 | C4: =VLOOKUP(A4,МСП!$A$3:$I$50001,6,FALSE) -> 47.72727273 | D4: =VLOOKUP(A4,МСП!$A$3:$G$50001,7,FALSE) -> 4.454545455 | E4: =VLOOKUP(A4,МСП!$A$3:$I$50001,5,FALSE) -> 9.333333333
A5: ООО уч 6 | B5: =VLOOKUP(A5,МСП!$A$3:$H$50001,4,FALSE) -> 30 | C5: =VLOOKUP(A5,МСП!$A$3:$I$50001,6,FALSE) -> 41.66666667 | D5: =VLOOKUP(A5,МСП!$A$3:$G$50001,7,FALSE) -> 2.666666667 | E5: =VLOOKUP(A5,МСП!$A$3:$I$50001,5,FALSE) -> 6.4
A6: ООО уч 15 | B6: =VLOOKUP(A6,МСП!$A$3:$H$50001,4,FALSE) -> 48 | C6: =VLOOKUP(A6,МСП!$A$3:$I$50001,6,FALSE) -> 35.41666667 | D6: =VLOOKUP(A6,МСП!$A$3:$G$50001,7,FALSE) -> 1.770833333 | E6: =VLOOKUP(A6,МСП!$A$3:$I$50001,5,FALSE) -> 5
A7: ООО уч 20 | B7: =VLOOKUP(A7,МСП!$A$3:$H$50001,4,FALSE) -> 58 | C7: =VLOOKUP(A7,МСП!$A$3:$I$50001,6,FALSE) -> 33.62068966 | D7: =VLOOKUP(A7,МСП!$A$3:$G$50001,7,FALSE) -> 1.681034483 | E7: =VLOOKUP(A7,МСП!$A$3:$I$50001,5,FALSE) -> 5
A8: ООО уч 19 | B8: =VLOOKUP(A8,МСП!$A$3:$H$50001,4,FALSE) -> 56 | C8: =VLOOKUP(A8,МСП!$A$3:$I$50001,6,FALSE) -> 33.92857143 | D8: =VLOOKUP(A8,МСП!$A$3:$G$50001,7,FALSE) -> 2.678571429 | E8: =VLOOKUP(A8,МСП!$A$3:$I$50001,5,FALSE) -> 7.894736842
A9: ООО уч 18 | B9: =VLOOKUP(A9,МСП!$A$3:$H$50001,4,FALSE) -> 54 | C9: =VLOOKUP(A9,МСП!$A$3:$I$50001,6,FALSE) -> 34.25925926 | D9: =VLOOKUP(A9,МСП!$A$3:$G$50001,7,FALSE) -> 1.712962963 | E9: =VLOOKUP(A9,МСП!$A$3:$I$50001,5,FALSE) -> 5
A10: ООО уч 13 | B10: =VLOOKUP(A10,МСП!$A$3:$H$50001,4,FALSE) -> 44 | C10: =VLOOKUP(A10,МСП!$A$3:$I$50001,6,FALSE) -> 36.36363636 | D10: =VLOOKUP(A10,МСП!$A$3:$G$50001,7,FALSE) -> 2.5 | E10: =VLOOKUP(A10,МСП!$A$3:$I$50001,5,FALSE) -> 6.875
A11: ООО уч 9 | B11: =VLOOKUP(A11,МСП!$A$3:$H$50001,4,FALSE) -> 36 | C11: =VLOOKUP(A11,МСП!$A$3:$I$50001,6,FALSE) -> 38.88888889 | D11: =VLOOKUP(A11,МСП!$A$3:$G$50001,7,FALSE) -> 1.944444444 | E11: =VLOOKUP(A11,МСП!$A$3:$I$50001,5,FALSE) -> 5
A12: ООО уч 5 | B12: =VLOOKUP(A12,МСП!$A$3:$H$50001,4,FALSE) -> 28 | C12: =VLOOKUP(A12,МСП!$A$3:$I$50001,6,FALSE) -> 42.85714286 | D12: =VLOOKUP(A12,МСП!$A$3:$G$50001,7,FALSE) -> 2.142857143 | E12: =VLOOKUP(A12,МСП!$A$3:$I$50001,5,FALSE) -> 5
A13: ООО уч 11 | B13: =VLOOKUP(A13,МСП!$A$3:$H$50001,4,FALSE) -> 40 | C13: =VLOOKUP(A13,МСП!$A$3:$I$50001,6,FALSE) -> 37.5 | D13: =VLOOKUP(A13,МСП!$A$3:$G$50001,7,FALSE) -> 1.875 | E13: =VLOOKUP(A13,МСП!$A$3:$I$50001,5,FALSE) -> 5

Sheet МСП
B1: Пестречинский муниципальный район
A2: Введите наименование МСП | B2: Введите объем выручки организации (Отчет о фин.результатах строка 2110), тыс. рублей | C2: Введите объем налоговых поступлений организации, тыс. рублей | D2: Введите среднесписочной численности работников в МСП, человек | E2: Налоговая нагрузка, процентов | F2: Выработка на 1 работника, тыс. рублей | G2: Налоговые поступления на 1 работника, тыс. рублей | H2: Выберите вид отрасли для МСП
A3: ООО уч 1 | B3: 1000 | C3: 100 | D3: 20 | E3: =IF(A3="","",C3/B3*100) -> 10 | F3: =IF(A3="","",B3/D3) -> 50 | G3: =IF(A3="","",C3/D3) -> 5 | H3: Сельское хозяйство
A4: ООО уч 2 | B4: 1050 | C4: 98 | D4: 22 | E4: =IF(A4="","",C4/B4*100) -> 9.333333333 | F4: =IF(A4="","",B4/D4) -> 47.72727273 | G4: =IF(A4="","",C4/D4) -> 4.454545455 | H4: Добыча полезных ископаемых
A5: ООО уч 3 | B5: 1100 | C5: 55 | D5: 24 | E5: 5 | F5: 45.83333333 | G5: 2.291666667 | H5: Обрабатывающие производства
A6: ООО уч 4 | B6: 1150 | C6: 57.5 | D6: 26 | E6: 5 | F6: 44.23076923 | G6: 2.211538462 | H6: Обеспечение электрической энергией, газом и паром; забор и очистка воды
A7: ООО уч 5 | B7: 1200 | C7: 60 | D7: 28 | E7: 5 | F7: 42.85714286 | G7: 2.142857143 | H7: Оптовая и розничная торговля
A8: ООО уч 6 | B8: 1250 | C8: 80 | D8: 30 | E8: 6.4 | F8: 41.66666667 | G8: 2.666666667 | H8: Оптовая и розничная торговля
A9: ООО уч 7 | B9: 1300 | C9: 65 | D9: 32 | E9: 5 | F9: 40.625 | G9: 2.03125 | H9: Оптовая и розничная торговля
A10: ООО уч 8 | B10: 1350 | C10: 67.5 | D10: 34 | E10: 5 | F10: 39.70588235 | G10: 1.985294118 | H10: Гостиницы и рестораны
A11: ООО уч 9 | B11: 1400 | C11: 70 | D11: 36 | E11: 5 | F11: 38.88888889 | G11: 1.944444444 | H11: Транспорт и связь
A12: ООО уч 10 | B12: 1450 | C12: 72.5 | D12: 38 | E12: 5 | F12: 38.15789474 | G12: 1.907894737 | H12: Финансовая деятельность
A13: ООО уч 11 | B13: 1500 | C13: 75 | D13: 40 | E13: 5 | F13: 37.5 | G13: 1.875 | H13: Операции с недвижимым имуществом, аренда и предоставление услуг
A14: ООО уч 12 | B14: 1550 | C14: 77.5 | D14: 42 | E14: 5 | F14: 36.9047619 | G14: 1.845238095 | H14: Образование
A15: ООО уч 13 | B15: 1600 | C15: 110 | D15: 44 | E15: 6.875 | F15: 36.36363636 | G15: 2.5 | H15: Строительство
A16: ООО уч 14 | B16: 1650 | C16: 82.5 | D16: 46 | E16: 5 | F16: 35.86956522 | G16: 1.793478261 | H16: Здравоохранение и предоставление социальных услуг
A17: ООО уч 15 | B17: 1700 | C17: 85 | D17: 48 | E17: 5 | F17: 35.41666667 | G17: 1.770833333 | H17: Предоставление прочих коммунальных, социальных и персональных услуг
A18: ООО уч 16 | B18: 1750 | C18: 87.5 | D18: 50 | E18: 5 | F18: 35 | G18: 1.75 | H18: Прочие отрасли
A19: ООО уч 17 | B19: 1800 | C19: 99 | D19: 52 | E19: 5.5 | F19: 34.61538462 | G19: 1.903846154 | H19: Сельское хозяйство
A20: ООО уч 18 | B20: 1850 | C20: 92.5 | D20: 54 | E20: 5 | F20: 34.25925926 | G20: 1.712962963 | H20: Сельское хозяйство
A21: ООО уч 19 | B21: 1900 | C21: 150 | D21: 56 | E21: 7.894736842 | F21: 33.92857143 | G21: 2.678571429 | H21: Оптовая и розничная торговля
A22: ООО уч 20 | B22: 1950 | C22: 97.5 | D22: 58 | E22: 5 | F22: 33.62068966 | G22: 1.681034483 | H22: Строительство
E29: =IF(A29="","",C29/B29*100) ->  | F29: =IF(A29="","",B29/D29) ->  | G29: =IF(A29="","",C29/D29) -> 
E93: =IF(A93="","",C93/B93*100) ->  | F93: =IF(A93="","",B93/D93) ->  | G93: =IF(A93="","",C93/D93) -> 
E157: =IF(A157="","",C157/B157*100) ->  | F157: =IF(A157="","",B157/D157) ->  | G157: =IF(A157="","",C157/D157) -> 
E221: =IF(A221="","",C221/B221*100) ->  | F221: =IF(A221="","",B221/D221) ->  | G221: =IF(A221="","",C221/D221) -> 
E285: =IF(A285="","",C285/B285*100) ->  | F285: =IF(A285="","",B285/D285) ->  | G285: =IF(A285="","",C285/D285) -> 
E349: =IF(A349="","",C349/B349*100) ->  | F349: =IF(A349="","",B349/D349) ->  | G349: =IF(A349="","",C349/D349) -> 
E413: =IF(A413="","",C413/B413*100) ->  | F413: =IF(A413="","",B413/D413) ->  | G413: =IF(A413="","",C413/D413) -> 
E477: =IF(A477="","",C477/B477*100) ->  | F477: =IF(A477="","",B477/D477) ->  | G477: =IF(A477="","",C477/D477) -> 
E541: =IF(A541="","",C541/B541*100) ->  | F541: =IF(A541="","",B541/D541) ->  | G541: =IF(A541="","",C541/D541) -> 
E605: =IF(A605="","",C605/B605*100) ->  | F605: =IF(A605="","",B605/D605) ->  | G605: =IF(A605="","",C605/D605) -> 
E669: =IF(A669="","",C669/B669*100) ->  | F669: =IF(A669="","",B669/D669) ->  | G669: =IF(A669="","",C669/D669) -> 
E733: =IF(A733="","",C733/B733*100) ->  | F733: =IF(A733="","",B733/D733) ->  | G733: =IF(A733="","",C733/D733) -> 
E797: =IF(A797="","",C797/B797*100) ->  | F797: =IF(A797="","",B797/D797) ->  | G797: =IF(A797="","",C797/D797) -> 
E861: =IF(A861="","",C861/B861*100) ->  | F861: =IF(A861="","",B861/D861) ->  | G861: =IF(A861="","",C861/D861) -> 
E925: =IF(A925="","",C925/B925*100) ->  | F925: =IF(A925="","",B925/D925) ->  | G925: =IF(A925="","",C925/D925) -> 
E989: =IF(A989="","",C989/B989*100) ->  | F989: =IF(A989="","",B989/D989) ->  | G989: =IF(A989="","",C989/D989) -> 
E1053: =IF(A1053="","",C1053/B1053*100) ->  | F1053: =IF(A1053="","",B1053/D1053) ->  | G1053: =IF(A1053="","",C1053/D1053) -> 
E1117: =IF(A1117="","",C1117/B1117*100) ->  | F1117: =IF(A1117="","",B1117/D1117) ->  | G1117: =IF(A1117="","",C1117/D1117) -> 
E1181: =IF(A1181="","",C1181/B1181*100) ->  | F1181: =IF(A1181="","",B1181/D1181) ->  | G1181: =IF(A1181="","",C1181/D1181) -> 
E1245: =IF(A1245="","",C1245/B1245*100) ->  | F1245: =IF(A1245="","",B1245/D1245) ->  | G1245: =IF(A1245="","",C1245/D1245) -> 
E1309: =IF(A1309="","",C1309/B1309*100) ->  | F1309: =IF(A1309="","",B1309/D1309) ->  | G1309: =IF(A1309="","",C1309/D1309) -> 
E1373: =IF(A1373="","",C1373/B1373*100) ->  | F1373: =IF(A1373="","",B1373/D1373) ->  | G1373: =IF(A1373="","",C1373/D1373) -> 
E1437: =IF(A1437="","",C1437/B1437*100) ->  | F1437: =IF(A1437="","",B1437/D1437) ->  | G1437: =IF(A1437="","",C1437/D1437) -> 
E1501: =IF(A1501="","",C1501/B1501*100) ->  | F1501: =IF(A1501="","",B1501/D1501) ->  | G1501: =IF(A1501="","",C1501/D1501) -> 
E1565: =IF(A1565="","",C1565/B1565*100) ->  | F1565: =IF(A1565="","",B1565/D1565) ->  | G1565: =IF(A1565="","",C1565/D1565) -> 
E1629: =IF(A1629="","",C1629/B1629*100) ->  | F1629: =IF(A1629="","",B1629/D1629) ->  | G1629: =IF(A1629="","",C1629/D1629) -> 
E1693: =IF(A1693="","",C1693/B1693*100) ->  | F1693: =IF(A1693="","",B1693/D1693) ->  | G1693: =IF(A1693="","",C1693/D1693) -> 
E1757: =IF(A1757="","",C1757/B1757*100) ->  | F1757: =IF(A1757="","",B1757/D1757) ->  | G1757: =IF(A1757="","",C1757/D1757) -> 
E1821: =IF(A1821="","",C1821/B1821*100) ->  | F1821: =IF(A1821="","",B1821/D1821) ->  | G1821: =IF(A1821="","",C1821/D1821) -> 
E1885: =IF(A1885="","",C1885/B1885*100) ->  | F1885: =IF(A1885="","",B1885/D1885) ->  | G1885: =IF(A1885="","",C1885/D1885) -> 
E1949: =IF(A1949="","",C1949/B1949*100) ->  | F1949: =IF(A1949="","",B1949/D1949) ->  | G1949: =IF(A1949="","",C1949/D1949) -> 
... 34 more rows

Sheet Диаграмма все мсп (hidden)

Sheet Районы (hidden)
A1: Наименование МО
A2: Агрызский муниципальный район | B2: Сельское хозяйство
A3: Азнакаевский муниципальный район | B3: Добыча полезных ископаемых
A4: Аксубаевский муниципальный район | B4: Обрабатывающие производства
A5: Актанышский муниципальный район | B5: Обеспечение электрической энергией, газом и паром; забор и очистка воды
A6: Алексеевский муниципальный район | B6: Строительство
A7: Алькеевский муниципальный район | B7: Оптовая и розничная торговля
A8: Альметьевский муниципальный район | B8: Гостиницы и рестораны
A9: Апастовский муниципальный район | B9: Транспорт и связь
A10: Арский муниципальный район | B10: Финансовая деятельность
A11: Атнинский муниципальный район | B11: Операции с недвижимым имуществом, аренда и предоставление услуг
A12: Бавлинский муниципальный район | B12: Образование
A13: Балтасинский муниципальный район | B13: Здравоохранение и предоставление социальных услуг
A14: Бугульминский муниципальный район | B14: Предоставление прочих коммунальных, социальных и персональных услуг
A15: Буинский муниципальный район | B15: Прочие отрасли
A16: Верхнеуслонский муниципальный район
A17: Высокогорский муниципальный район
A18: Дрожжановский муниципальный район
A19: Елабужский муниципальный район
A20: Заинский муниципальный район
A21: Зеленодольский муниципальный район
A22: Кайбицкий муниципальный район
A23: Камско-Устьинский муниципальный район
A24: Кукморский муниципальный район
A25: Лаишевский муниципальный район
A26: Лениногорский муниципальный район
A27: Мамадышский муниципальный район
A28: Менделевский муниципальный район
A29: Мензелинский муниципальный район
A30: Муслюмовский муниципальный район
A31: Нижнекамский муниципальный район
A32: Новошешминский муниципальный район
A33: Нурлатский муниципальный район
A34: Пестречинский муниципальный район
A35: Рыбно-Слободский муниципальный район
A36: Сабинский муниципальный район
A37: Сармановский муниципальный район
A38: Спасский муниципальный район
A39: Тетюшский муниципальный район
A40: Тукаевский муниципальный район
A41: Тюлячинский муниципальный район
A42: Черемшанский муниципальный район
A43: Чистопольский муниципальный район
A44: Ютазинский муниципальный район
A45: город Казань
A46: город Набережные Челны
